fUSD/lending_fUSD_20240519
["ID","MTS","AMOUNT","RATE_DAILY","PERIOD"]
[327513110,1716143450808,-154.10962397,0.00042409,30]
[327513111,1716143450818,-173.75382498,0.00042409,30]
[327513112,1716143450827,-3727.59332832,0.00042415,16]
[327513113,1716143450837,-221.0,0.0004242,2]
[327513114,1716143450847,-152.0,0.00042425,4]
[327513115,1716143450859,-469.40265596,0.00042455,30]
[327513116,1716143450870,-154.10962397,0.00042455,30]
[327513117,1716143450879,-173.75382498,0.00042455,30]
[327513118,1716143450889,-2250.68,0.00042465,120]
[327513119,1716143450898,-2233.81,0.00042465,120]
[327513120,1716143450908,-150.0,0.00042469,30]
[327513121,1716143450917,-238.66065179,0.000425,30]
[327513122,1716143450926,-370.707632,0.000425,14]
[327513123,1716143450936,-370.707632,0.000425,14]
[327513124,1716143450946,-1742.745998,0.000425,14]
[327513125,1716143450955,-1742.745998,0.000425,14]
[327513126,1716143450964,-246.21166,0.000425,14]
[327513127,1716143450973,-4000.0,0.000425,32]
[327513128,1716143450982,-469.40265596,0.000425,30]
[327513129,1716143450990,-154.10962397,0.000425,30]
[327513130,1716143450999,-173.75382498,0.000425,30]
[327513131,1716143451008,-211.0,0.0004252,2]
[327513132,1716143451017,-172.972946,0.00042527,14]
[327513133,1716143451026,-172.972946,0.00042527,14]
[327513134,1716143451035,-151.0,0.00042527,14]
[327513135,1716143451045,-151.0,0.00042527,14]
[327513136,1716143451054,-151.0,0.00042527,14]
[327513137,1716143451063,-300.0,0.00042534,30]
[327513138,1716143451073,-469.40265596,0.00042545,30]
[327513139,1716143451082,-154.10962397,0.00042545,30]
[327513140,1716143451091,-173.75382498,0.00042545,30]
[327513141,1716143451100,-540.36157823,0.0004255,2]
[327513142,1716143451109,-219.0,0.0004255,2]
[327513143,1716143451118,-469.40265596,0.00042591,30]
[327513144,1716143451127,-154.10962397,0.00042591,30]
[327513145,1716143451137,-173.75382498,0.00042591,30]
[327513146,1716143451146,-387.0,0.000426,120]
[327513147,1716143451155,-2250.68,0.00042602,120]
[327513148,1716143451164,-2233.81,0.00042602,120]
[327513149,1716143451173,-211.30063446,0.00042623,17]
[327513150,1716143451183,-469.40265596,0.00042636,30]
[327513151,1716143451192,-154.10962397,0.00042636,30]
[327513152,1716143451203,-173.75382498,0.00042636,30]
[327513153,1716143451212,-290.5,0.0004268,15]
[327513154,1716143451222,-238.0,0.0004268,15]
[327513155,1716143451231,-469.40265596,0.00042682,30]
[327513156,1716143451241,-154.10962397,0.00042682,30]
[327513157,1716143451250,-173.75382498,0.00042682,30]
[327513158,1716143451259,-150.5,0.0004269,15]
[327513159,1716143451268,-238.0,0.0004269,15]
[327513160,1716143451278,-283.61227472,0.00042698,90]
[327513161,1716143451287,-376.13157765,0.00042698,90]
[327513162,1716143451296,-2381.0,0.000427,92]
[327513163,1716143451305,-469.40265596,0.00042727,30]
[327513164,1716143451314,-154.10962397,0.00042727,30]
[327513165,1716143451323,-173.75382498,0.00042727,30]
[327513166,1716143451332,-2250.68,0.00042739,120]
[327513167,1716143451341,-2233.81,0.00042739,120]
[327513168,1716143451351,-151.0,0.00042739,14]
[327513169,1716143451360,-1431.271381,0.00042739,14]
[327513170,1716143451369,-3110.410877,0.00042739,14]
[327513171,1716143451378,-1431.271381,0.00042739,14]
[327513172,1716143451387,-3110.410877,0.00042739,14]
[327513173,1716143451396,-546.692403,0.00042739,14]
[327513174,1716143451405,-546.692403,0.00042739,14]
[327513175,1716143451415,-150.0,0.0004275,30]
[327513176,1716143451424,-150.0,0.0004275,30]
[327513177,1716143451433,-150.0,0.0004275,30]
[327513178,1716143451442,-150.0,0.0004275,30]
[327513179,1716143451452,-469.40265596,0.00042773,30]
[327513180,1716143451461,-154.10962397,0.00042773,30]
[327513181,1716143451470,-173.75382498,0.00042773,30]
[327513182,1716143451480,-198.04961042,0.00042799,60]
[327513183,1716143451489,-151.0,0.00042799,14]
[327513184,1716143451499,-151.0,0.00042799,14]
[327513185,1716143451508,-300.0,0.00042799,2]
[327513186,1716143451519,-649999.0,0.000428,60]
[327513187,1716143451528,-161.81,0.000428,7]
[327513188,1716143451537,-151.0,0.000428,2]
[327513189,1716143451547,-229.215054,0.000428,14]
[327513190,1716143451556,-155.240489,0.000428,14]
[327513191,1716143451566,-151.0,0.000428,14]
[327513192,1716143451575,-151.0,0.000428,14]
[327513193,1716143451584,-151.0,0.000428,14]
[327513194,1716143451594,-294.35652,0.000428,14]
[327513195,1716143451603,-874.822919,0.000428,14]
[327513196,1716143451612,-802.252245,0.000428,14]
[327513197,1716143451621,-802.252245,0.000428,14]
[327513198,1716143451631,-365.141666,0.000428,14]
[327513199,1716143451641,-365.141666,0.000428,14]
[327513200,1716143451650,-269.014557,0.000428,14]
[327513201,1716143451659,-269.014557,0.000428,14]
[327513202,1716143451668,-151.0,0.000428,14]
[327513203,1716143451676,-151.0,0.000428,14]
[327513204,1716143451686,-639.183821,0.000428,14]
[327513205,1716143451695,-183.125235,0.000428,14]
[327513206,1716143451705,-639.183821,0.000428,14]
[327513207,1716143451715,-151.0,0.000428,14]
[327513208,1716143451724,-151.0,0.000428,14]
[327513209,1716143451734,-172.972946,0.000428,14]
[327513210,1716143451743,-172.972946,0.000428,14]
[327513211,1716143451752,-151.0,0.000428,14]
[327513212,1716143451761,-272.01772,0.000428,14]
[327513213,1716143451771,-161.192506,0.000428,14]
[327513214,1716143451785,-373.768762,0.000428,14]
[327513215,1716143451794,-373.768762,0.000428,14]
[327513216,1716143451804,-151.0,0.000428,14]
[327513217,1716143451814,-792.868302,0.000428,14]
[327513218,1716143451825,-792.868302,0.000428,14]
[327513219,1716143451835,-292.218124,0.000428,14]
[327513220,1716143451844,-292.218124,0.000428,14]
[327513221,1716143451854,-233.031603,0.000428,14]
[327513222,1716143451863,-233.031603,0.000428,14]
[327513223,1716143451873,-202.0,0.000428,14]
[327513224,1716143451883,-151.0,0.000428,14]
[327513225,1716143451892,-210.795752,0.000428,14]
[327513226,1716143451901,-210.795752,0.000428,14]
[327513227,1716143451910,-151.0,0.000428,14]
[327513228,1716143451919,-2514.905258,0.000428,14]
[327513229,1716143451929,-151.0,0.000428,14]
[327513230,1716143451938,-2514.905258,0.000428,14]
[327513231,1716143451947,-204.519669,0.000428,14]
[327513232,1716143451956,-204.519669,0.000428,14]
[327513233,1716143451966,-151.0,0.000428,14]
[327513234,1716143451975,-282.330118,0.000428,14]
[327513235,1716143451984,-151.0,0.000428,14]
[327513236,1716143451993,-1431.271381,0.000428,14]
[327513237,1716143452002,-3110.410877,0.000428,14]
[327513238,1716143452012,-1431.271381,0.000428,14]
[327513239,1716143452022,-3110.410877,0.000428,14]
[327513240,1716143452032,-546.692403,0.000428,14]
[327513241,1716143452139,-546.692403,0.000428,14]
[327513242,1716143452150,-370.707632,0.000428,14]
[327513243,1716143452159,-370.707632,0.000428,14]
[327513244,1716143452168,-1742.745998,0.000428,14]
[327513245,1716143452178,-1742.745998,0.000428,14]
[327513246,1716143452187,-469.40265596,0.00042818,30]
[327513247,1716143452196,-154.10962397,0.00042818,30]
[327513248,1716143452206,-173.75382498,0.00042818,30]
[327513249,1716143452215,-3727.59332832,0.0004283,17]
[327513250,1716143452224,-469.40265596,0.00042864,30]
[327513251,1716143452234,-154.10962397,0.00042864,30]
[327513252,1716143452243,-173.75382498,0.00042864,30]
[327513253,1716143452253,-2250.68,0.00042876,120]
[327513254,1716143452263,-2233.81,0.00042876,120]
[327513255,1716143452272,-353.0,0.000429,32]
[327513256,1716143452282,-469.40265596,0.00042909,30]
[327513257,1716143452291,-154.10962397,0.00042909,30]
[327513258,1716143452300,-173.75382498,0.00042909,30]
[327513259,1716143452309,-300.0,0.00042936,2]
[327513260,1716143452318,-150.0,0.00042943,2]
[327513261,1716143452327,-469.40265596,0.00042955,30]
[327513262,1716143452337,-154.10962397,0.00042955,30]
[327513263,1716143452346,-173.75382498,0.00042955,30]
[327513264,1716143452355,-260.29,0.00042957,2]
[327513265,1716143452365,-313.880918,0.00042964,30]
[327513266,1716143452374,-499.999999,0.0004298,25]
[327513267,1716143452383,-696.96591936,0.00043,10]
[327513268,1716143452393,-30000.0,0.00043,30]
[327513269,1716143452403,-216454.38803339,0.00043,30]
[327513270,1716143452412,-151.0,0.00043,2]
[327513271,1716143452421,-202.54139833,0.00043,5]
[327513272,1716143452432,-151.0,0.00043,14]
[327513273,1716143452441,-151.0,0.00043,14]
[327513274,1716143452452,-151.0,0.00043,14]
[327513275,1716143452461,-294.35652,0.00043,14]
[327513276,1716143452470,-874.822919,0.00043,14]
[327513277,1716143452481,-874.822919,0.00043,14]
[327513278,1716143452490,-802.252245,0.00043,14]
[327513279,1716143452500,-802.252245,0.00043,14]
[327513280,1716143452509,-365.141666,0.00043,14]
[327513281,1716143452519,-365.141666,0.00043,14]
[327513282,1716143452528,-269.014557,0.00043,14]
[327513283,1716143452536,-269.014557,0.00043,14]
[327513284,1716143452547,-151.0,0.00043,14]
[327513285,1716143452556,-151.0,0.00043,14]
[327513286,1716143452565,-639.183821,0.00043,14]
[327513287,1716143452574,-639.183821,0.00043,14]
[327513288,1716143452583,-151.0,0.00043,14]
[327513289,1716143452592,-151.0,0.00043,14]
[327513290,1716143452601,-172.972946,0.00043,14]
[327513291,1716143452611,-172.972946,0.00043,14]
[327513292,1716143452620,-151.0,0.00043,14]
[327513293,1716143452630,-373.768762,0.00043,14]
[327513294,1716143452639,-373.768762,0.00043,14]
[327513295,1716143452648,-151.0,0.00043,14]
[327513296,1716143452658,-792.868302,0.00043,14]
[327513297,1716143452667,-792.868302,0.00043,14]
[327513298,1716143452677,-292.218124,0.00043,14]
[327513299,1716143452686,-292.218124,0.00043,14]
[327513300,1716143452696,-233.031603,0.00043,14]
[327513301,1716143452706,-233.031603,0.00043,14]
[327513302,1716143452716,-275.207606,0.00043,14]
[327513303,1716143452725,-300.536375,0.00043,8]
[327513304,1716143452735,-210.795752,0.00043,14]
[327513305,1716143452744,-210.795752,0.00043,14]
[327513306,1716143452754,-151.0,0.00043,14]
[327513307,1716143452763,-2514.905258,0.00043,14]
[327513308,1716143452773,-151.0,0.00043,14]
[327513309,1716143452787,-2514.905258,0.00043,14]
[327513310,1716143452796,-204.519669,0.00043,14]
[327513311,1716143452806,-204.519669,0.00043,14]
[327513312,1716143452815,-151.0,0.00043,14]
[327513313,1716143452826,-151.0,0.00043,14]
[327513314,1716143452836,-1431.271381,0.00043,14]
[327513315,1716143452845,-3110.410877,0.00043,14]
[327513316,1716143452856,-1431.271381,0.00043,14]
[327513317,1716143452866,-3110.410877,0.00043,14]
[327513318,1716143452875,-546.692403,0.00043,14]
[327513319,1716143452885,-546.692403,0.00043,14]
[327513320,1716143452894,-370.707632,0.00043,14]
[327513321,1716143452904,-370.707632,0.00043,14]
[327513322,1716143452913,-1742.745998,0.00043,14]
[327513323,1716143452923,-1742.745998,0.00043,14]
[327513324,1716143452932,-469.40265596,0.00043,30]
[327513325,1716143452942,-154.10962397,0.00043,30]
[327513326,1716143452952,-173.75382498,0.00043,30]
[327513327,1716143452961,-2250.68,0.00043013,120]
[327513328,1716143452971,-2233.81,0.00043013,120]
[327513329,1716143452980,-150.0,0.00043031,30]
[327513330,1716143452989,-469.40265596,0.00043045,30]
[327513331,1716143452998,-154.10962397,0.00043045,30]
[327513332,1716143453008,-173.75382498,0.00043045,30]
[327513333,1716143453017,-300.0,0.00043073,2]
[327513334,1716143453027,-469.40265596,0.00043091,30]
[327513335,1716143453036,-154.10962397,0.00043091,30]
[327513336,1716143453045,-173.75382498,0.00043091,30]
[327513337,1716143453055,-469.40265596,0.00043136,30]
[327513338,1716143453065,-154.10962397,0.00043136,30]
[327513339,1716143453075,-173.75382498,0.00043136,30]
[327513340,1716143453085,-2250.68,0.0004315,120]
[327513341,1716143453094,-2233.81,0.0004315,120]
[327513342,1716143453103,-469.40265596,0.00043182,30]
[327513343,1716143453113,-154.10962397,0.00043182,30]
[327513344,1716143453122,-173.75382498,0.00043182,30]
[327513345,1716143453132,-2588.93,0.00043184,6]
[327513346,1716143453141,-300.0,0.0004321,2]
[327513347,1716143453151,-469.40265596,0.00043227,30]
[327513348,1716143453161,-154.10962397,0.00043227,30]
[327513349,1716143453171,-173.75382498,0.00043227,30]
[327513350,1716143453180,-3727.59332832,0.00043244,18]
[327513351,1716143453190,-469.40265596,0.00043273,30]
[327513352,1716143453200,-154.10962397,0.00043273,30]
[327513353,1716143453210,-173.75382498,0.00043273,30]
[327513354,1716143453220,-2250.68,0.00043287,120]
[327513355,1716143453230,-2233.81,0.00043287,120]
[327513356,1716143453239,-150.0,0.00043313,30]
[327513357,1716143453249,-150.0,0.00043313,30]
[327513358,1716143453259,-469.40265596,0.00043318,30]
[327513359,1716143453268,-154.10962397,0.00043318,30]
[327513360,1716143453277,-173.75382498,0.00043318,30]
[327513361,1716143453286,-207.0,0.0004333,2]
[327513362,1716143453295,-469.40265596,0.00043364,30]
[327513363,1716143453304,-154.10962397,0.00043364,30]
[327513364,1716143453314,-173.75382498,0.00043364,30]
[327513365,1716143453323,-353.0,0.000434,33]
[327513366,1716143453332,-8164.83276803,0.00043407,2]
[327513367,1716143453342,-19973.79719336,0.00043407,2]
[327513368,1716143453351,-469.40265596,0.00043409,30]
[327513369,1716143453360,-154.10962397,0.00043409,30]
[327513370,1716143453369,-173.75382498,0.00043409,30]
[327513371,1716143453378,-2250.68,0.00043424,120]
[327513372,1716143453387,-2233.81,0.00043424,120]
[327513373,1716143453396,-469.40265596,0.00043455,30]
[327513374,1716143453405,-154.10962397,0.00043455,30]
[327513375,1716143453414,-173.75382498,0.00043455,30]
[327513376,1716143453423,-151.0,0.00043462,2]
[327513377,1716143453432,-4000.0,0.000435,32]
[327513378,1716143453441,-300.0,0.000435,8]
[327513379,1716143453450,-469.40265596,0.000435,30]
[327513380,1716143453459,-154.10962397,0.000435,30]
[327513381,1716143453468,-150.0,0.000435,30]
[327513382,1716143453477,-173.75382498,0.000435,30]
[327513383,1716143453486,-150.0,0.000435,30]
[327513384,1716143453495,-150.0,0.000435,30]
[327513385,1716143453504,-469.40265596,0.00043545,30]
[327513386,1716143453514,-154.10962397,0.00043545,30]
[327513387,1716143453525,-173.75382498,0.00043545,30]
[327513388,1716143453534,-2250.68,0.00043561,120]
[327513389,1716143453543,-2233.81,0.00043561,120]
[327513390,1716143453552,-469.40265596,0.00043591,30]
[327513391,1716143453562,-154.10962397,0.00043591,30]
[327513392,1716143453571,-173.75382498,0.00043591,30]
[327513393,1716143453580,-150.0,0.00043594,30]
[327513394,1716143453590,-313.880918,0.00043605,30]
[327513395,1716143453599,-151.851773,0.00043605,30]
[327513396,1716143453609,-469.40265596,0.00043636,30]
[327513397,1716143453618,-154.10962397,0.00043636,30]
[327513398,1716143453627,-173.75382498,0.00043636,30]
[327513399,1716143453637,-568.0,0.00043638,30]
[327513400,1716143453646,-808.0,0.00043638,30]
[327513401,1716143453655,-3727.59332832,0.00043658,18]
[327513402,1716143453665,-150.0,0.00043658,120]
[327513403,1716143453676,-469.40265596,0.00043682,30]
[327513404,1716143453686,-154.10962397,0.00043682,30]
[327513405,1716143453695,-173.75382498,0.00043682,30]
[327513406,1716143453707,-2250.68,0.00043698,120]
[327513407,1716143453717,-2233.81,0.00043698,120]
[327513408,1716143453726,-221.0,0.0004371,2]
[327513409,1716143453735,-217.0,0.0004371,2]
[327513410,1716143453745,-206.0,0.0004371,2]
[327513411,1716143453755,-150.0,0.00043715,120]
[327513412,1716143453764,-469.40265596,0.00043727,30]
[327513413,1716143453777,-154.10962397,0.00043727,30]
[327513414,1716143453786,-173.75382498,0.00043727,30]
[327513415,1716143453796,-150.08770528,0.00043735,28]
[327513416,1716143453805,-194.28344921,0.00043735,7]
[327513417,1716143453814,-194.28344921,0.00043735,7]
[327513418,1716143453825,-194.78,0.00043735,7]
[327513419,1716143453834,-155.52675937,0.00043735,7]
[327513420,1716143453843,-155.52675937,0.00043735,7]
[327513421,1716143453855,-155.52675937,0.00043735,7]
[327513422,1716143453865,-155.52675937,0.00043735,7]
[327513423,1716143453874,-155.52675937,0.00043735,7]
[327513424,1716143453883,-155.52675937,0.00043735,7]
[327513425,1716143453892,-155.52675937,0.00043735,7]
[327513426,1716143453901,-155.52675937,0.00043735,7]
[327513427,1716143453910,-155.52675937,0.00043735,7]
[327513428,1716143453919,-155.52675937,0.00043735,7]
[327513429,1716143453928,-155.52675937,0.00043735,7]
[327513430,1716143453937,-155.52675937,0.00043735,7]
[327513431,1716143453946,-155.52675937,0.00043735,7]
[327513432,1716143453956,-156.7649528,0.00043735,7]
[327513433,1716143453965,-156.7649528,0.00043735,7]
[327513434,1716143453975,-156.7649528,0.00043735,7]
[327513435,1716143453984,-156.7649528,0.00043735,7]
[327513436,1716143453994,-157.26,0.00043735,7]
[327513437,1716143454003,-156.8399528,0.00043735,7]
[327513438,1716143454013,-156.8399528,0.00043735,7]
[327513439,1716143454021,-156.8399528,0.00043735,7]
[327513440,1716143454031,-156.8399528,0.00043735,7]
[327513441,1716143454040,-156.8399528,0.00043735,7]
[327513442,1716143454049,-156.8399528,0.00043735,7]
[327513443,1716143454059,-156.8399528,0.00043735,7]
[327513444,1716143454068,-156.8399528,0.00043735,7]
[327513445,1716143454078,-156.8399528,0.00043735,7]
[327513446,1716143454086,-156.8399528,0.00043735,7]
[327513447,1716143454096,-156.8399528,0.00043735,7]
[327513448,1716143454106,-156.8399528,0.00043735,7]
[327513449,1716143454115,-156.8399528,0.00043735,7]
[327513450,1716143454125,-156.8399528,0.00043735,7]
[327513451,1716143454225,-156.8399528,0.00043735,7]
[327513452,1716143454235,-156.8399528,0.00043735,7]
[327513453,1716143454245,-156.8399528,0.00043735,7]
[327513454,1716143454255,-211.0,0.0004376,2]
[327513455,1716143454264,-211.30063446,0.00043762,18]
[327513456,1716143454274,-219.0,0.0004377,2]
[327513457,1716143454283,-469.40265596,0.00043773,30]
[327513458,1716143454292,-154.10962397,0.00043773,30]
[327513459,1716143454301,-173.75382498,0.00043773,30]
[327513460,1716143454311,-469.40265596,0.00043818,30]
[327513461,1716143454320,-154.10962397,0.00043818,30]
[327513462,1716143454330,-173.75382498,0.00043818,30]
[327513463,1716143454339,-187.62,0.00043825,15]
[327513464,1716143454348,-338.71874089,0.00043829,2]
[327513465,1716143454357,-306.26372084,0.00043833,4]
[327513466,1716143454366,-260.17562336,0.00043833,4]
[327513467,1716143454375,-350.52390496,0.00043833,60]
[327513468,1716143454384,-155.81401427,0.00043833,15]
[327513469,1716143454394,-207.28644368,0.00043833,4]
[327513470,1716143454403,-341.02113438,0.00043833,14]
[327513471,1716143454412,-208.25679989,0.00043833,30]
[327513472,1716143454421,-365.49240007,0.00043833,120]
[327513473,1716143454430,-333.32256294,0.00043833,4]
[327513474,1716143454440,-169.1541471,0.00043834,4]
[327513475,1716143454450,-394.12867716,0.00043834,30]
[327513476,1716143454460,-579.9913339,0.00043834,30]
[327513477,1716143454469,-2000.0,0.00043834,2]
[327513478,1716143454478,-493.21116485,0.00043835,60]
[327513479,1716143454487,-480.71227677,0.00043835,30]
[327513480,1716143454496,-500.0,0.00043835,30]
[327513481,1716143454506,-500.0,0.00043835,30]
[327513482,1716143454515,-253.76094295,0.00043835,30]
[327513483,1716143454524,-159.57979223,0.00043835,30]
[327513484,1716143454533,-220.82567653,0.00043835,30]
[327513485,1716143454542,-398.20161384,0.00043835,30]
[327513486,1716143454551,-500.0,0.00043835,30]
[327513487,1716143454560,-583.80603709,0.00043835,30]
[327513488,1716143454569,-500.0,0.00043835,30]
[327513489,1716143454580,-510.2994099,0.00043835,30]
[327513490,1716143454589,-404.46943228,0.00043835,30]
[327513491,1716143454598,-519.00959426,0.00043835,30]
[327513492,1716143454607,-534.92679159,0.00043835,30]
[327513493,1716143454616,-507.23563129,0.00043835,30]
[327513494,1716143454626,-500.0,0.00043835,30]
[327513495,1716143454635,-216.50627843,0.00043835,30]
[327513496,1716143454645,-500.0,0.00043835,30]
[327513497,1716143454654,-627.66904942,0.00043835,30]
[327513498,1716143454664,-504.81451322,0.00043835,30]
[327513499,1716143454673,-253.48628962,0.00043835,30]
[327513500,1716143454683,-500.0,0.00043835,30]
[327513501,1716143454693,-196.31305432,0.00043835,30]
[327513502,1716143454703,-500.0,0.00043835,30]
[327513503,1716143454712,-500.0,0.00043835,30]
[327513504,1716143454721,-538.67579022,0.00043835,30]
[327513505,1716143454730,-647.43133925,0.00043835,30]
[327513506,1716143454739,-540.9001348,0.00043835,30]
[327513507,1716143454749,-500.0,0.00043835,30]
[327513508,1716143454758,-500.0,0.00043835,30]
[327513509,1716143454767,-500.0,0.00043835,30]
[327513510,1716143454779,-326.21,0.00043835,30]
[327513511,1716143454789,-500.0,0.00043835,30]
[327513512,1716143454798,-273.82,0.00043835,30]
[327513513,1716143454807,-500.0,0.00043835,7]
[327513514,1716143454818,-500.79483261,0.00043835,7]
[327513515,1716143454827,-401.71803907,0.00043835,30]
[327513516,1716143454836,-500.0,0.00043835,30]
[327513517,1716143454845,-538.04172805,0.00043835,30]
[327513518,1716143454857,-500.0,0.00043835,30]
[327513519,1716143454867,-500.0,0.00043835,30]
[327513520,1716143454876,-401.72445338,0.00043835,30]
[327513521,1716143454885,-151.0,0.00043835,2]
[327513522,1716143454894,-185.138855,0.00043835,2]
[327513523,1716143454904,-525.3860459,0.00043835,30]
[327513524,1716143454912,-500.0,0.00043835,30]
[327513525,1716143454922,-500.0,0.00043835,30]
[327513526,1716143454930,-195.86559781,0.00043835,30]
[327513527,1716143454939,-500.0,0.00043835,30]
[327513528,1716143454949,-504.4978149,0.00043835,30]
[327513529,1716143454958,-500.0,0.00043835,30]
[327513530,1716143454968,-500.0,0.00043835,30]
[327513531,1716143454977,-500.0,0.00043835,30]
[327513532,1716143454986,-530.41415957,0.00043835,30]
[327513533,1716143454995,-500.0,0.00043835,30]
[327513534,1716143455004,-297.20474774,0.00043835,30]
[327513535,1716143455014,-299.52,0.00043835,30]
[327513536,1716143455023,-500.0,0.00043835,30]
[327513537,1716143455032,-500.0,0.00043835,30]
[327513538,1716143455042,-500.0,0.00043835,30]
[327513539,1716143455051,-213.20776235,0.00043835,30]
[327513540,1716143455060,-509.43154633,0.00043835,30]
[327513541,1716143455069,-501.68608915,0.00043835,30]
[327513542,1716143455078,-500.0,0.00043835,30]
[327513543,1716143455088,-348.44983578,0.00043835,30]
[327513544,1716143455097,-164.35,0.00043835,30]
[327513545,1716143455106,-647.31536195,0.00043835,30]
[327513546,1716143455115,-153.8372644,0.00043835,30]
[327513547,1716143455124,-500.0,0.00043835,30]
[327513548,1716143455133,-563.51121459,0.00043835,30]
[327513549,1716143455142,-500.0,0.00043835,30]
[327513550,1716143455152,-379.60934674,0.00043835,30]
[327513551,1716143455161,-587.67337585,0.00043835,30]
[327513552,1716143455171,-296.6304802,0.00043835,30]
[327513553,1716143455180,-500.0,0.00043835,30]
[327513554,1716143455189,-500.0,0.00043835,30]
[327513555,1716143455198,-500.0,0.00043835,30]
[327513556,1716143455208,-154.86,0.00043835,30]
[327513557,1716143455217,-500.0,0.00043835,30]
[327513558,1716143455227,-450.78,0.00043835,30]
[327513559,1716143455236,-500.0,0.00043835,30]
[327513560,1716143455245,-441.69075116,0.00043835,30]
[327513561,1716143455254,-500.0,0.00043835,30]
[327513562,1716143455263,-500.0,0.00043835,30]
[327513563,1716143455272,-500.0,0.00043835,30]
[327513564,1716143455281,-195.95375694,0.00043835,30]
[327513565,1716143455290,-507.62838368,0.00043835,30]
[327513566,1716143455300,-393.82,0.00043835,30]
[327513567,1716143455309,-157.7,0.00043835,30]
[327513568,1716143455318,-500.0,0.00043835,30]
[327513569,1716143455327,-500.0,0.00043835,30]
[327513570,1716143455336,-602.61059251,0.00043835,30]
[327513571,1716143455346,-195.25343238,0.00043835,30]
[327513572,1716143455355,-500.0,0.00043835,30]
[327513573,1716143455364,-500.0,0.00043835,30]
[327513574,1716143455373,-500.0,0.00043835,30]
[327513575,1716143455382,-500.0,0.00043835,30]
[327513576,1716143455391,-500.0,0.00043835,30]
[327513577,1716143455400,-500.0,0.00043835,30]
[327513578,1716143455409,-500.0,0.00043835,30]
[327513579,1716143455418,-500.0,0.00043835,30]
[327513580,1716143455427,-500.0,0.00043835,30]
[327513581,1716143455436,-500.0,0.00043835,30]
[327513582,1716143455445,-182.25551186,0.00043835,30]
[327513583,1716143455455,-500.0,0.00043835,30]
[327513584,1716143455464,-244.66202685,0.00043835,30]
[327513585,1716143455473,-515.11748907,0.00043835,30]
[327513586,1716143455482,-500.0,0.00043835,30]
[327513587,1716143455491,-500.0,0.00043835,30]
[327513588,1716143455501,-500.0,0.00043835,30]
[327513589,1716143455510,-500.0,0.00043835,30]
[327513590,1716143455520,-500.0,0.00043835,30]
[327513591,1716143455529,-502.46549128,0.00043835,30]
[327513592,1716143455538,-214.74331389,0.00043835,30]
[327513593,1716143455547,-500.0,0.00043835,30]
[327513594,1716143455556,-281.37259998,0.00043835,30]
[327513595,1716143455565,-247.15,0.00043835,30]
[327513596,1716143455574,-500.0,0.00043835,30]
[327513597,1716143455583,-500.0,0.00043835,30]
[327513598,1716143455592,-500.0,0.00043835,30]
[327513599,1716143455601,-433.40494853,0.00043835,30]
[327513600,1716143455611,-520.78191697,0.00043835,30]
[327513601,1716143455620,-642.22525624,0.00043835,30]
[327513602,1716143455629,-500.0,0.00043835,30]
[327513603,1716143455638,-311.61582648,0.00043835,30]
[327513604,1716143455648,-500.0,0.00043835,30]
[327513605,1716143455656,-348.30887771,0.00043835,30]
[327513606,1716143455665,-329.27266262,0.00043835,30]
[327513607,1716143455674,-155.0,0.00043835,30]
[327513608,1716143455683,-521.88071173,0.00043835,30]
[327513609,1716143455692,-500.0,0.00043835,30]